fUSD/lending_fUSD_20260510
["ID","MTS","AMOUNT","RATE_DAILY","PERIOD"]
[421951871,1778365847000,-151.0,0.00041858,120]
[421951918,1778365848000,-30000.0,0.00041858,2]
[421951924,1778365848000,-156.0,0.00041858,120]
[421951922,1778365848000,-155.0,0.00041858,120]
[421951925,1778365848000,-241.29213992,0.00041858,120]
[421951919,1778365848000,-154.0,0.00041858,120]
[421951921,1778365848000,-162.0,0.00041858,120]
[421951935,1778365848000,-1000000.0,0.00041859,30]
[421951930,1778365848000,-204.47170256,0.00041859,120]
[421951936,1778365848000,-1000000.0,0.00041859,30]
[421951932,1778365848000,-441376.09978909,0.00041859,30]
[421951934,1778365848000,-1000000.0,0.00041859,30]
[421951923,1778365848000,-207.0,0.00041858,120]
[421951928,1778365848000,-156.0,0.00041858,120]
[421951931,1778365848000,-175448.32496073,0.00041859,49]
[421951905,1778365848000,-2124.115976,0.00041858,120]
[421951917,1778365848000,-172.0,0.00041858,120]
[421951938,1778365848000,-1000000.0,0.00041859,30]
[421951913,1778365848000,-151.0,0.00041858,120]
[421951914,1778365848000,-2124.115976,0.00041858,120]
[421951906,1778365848000,-694.767568,0.00041858,120]
[421951907,1778365848000,-151.0,0.00041858,120]
[421951908,1778365848000,-6508.40635,0.00041858,14]
[421951920,1778365848000,-179.0,0.00041858,120]
[421951910,1778365848000,-694.767568,0.00041858,120]
[421951911,1778365848000,-6508.40635,0.00041858,14]
[421951912,1778365848000,-295.059288,0.00041858,120]
[421951916,1778365848000,-6508.40635,0.00041858,14]
[421951927,1778365848000,-1780.82842397,0.00041858,120]
[421951915,1778365848000,-694.767568,0.00041858,120]
[421951926,1778365848000,-156.0,0.00041858,120]
[421951909,1778365848000,-2124.115976,0.00041858,120]
[421951933,1778365848000,-1000000.0,0.00041859,30]
[421951952,1778365848000,-151.0,0.00041858,120]
[421951929,1778365848000,-150.67336317,0.00041858,120]
[421951937,1778365848000,-1000000.0,0.00041859,30]
[421951962,1778365848000,-694.767568,0.00041858,120]
[421951965,1778365848000,-694.767568,0.00041858,120]
[421951963,1778365848000,-6508.40635,0.00041858,14]
[421951959,1778365848000,-694.767568,0.00041858,120]
[421951958,1778365848000,-6508.40635,0.00041858,14]
[421951969,1778365848000,-600.0,0.00041859,30]
[421951960,1778365848000,-151.0,0.00041858,120]
[421951966,1778365848000,-6508.40635,0.00041858,14]
[421951967,1778365848000,-423191.59822186,0.00041859,30]
[421951968,1778365848000,-10879.38671446,0.00041859,30]
[421951961,1778365848000,-2124.115976,0.00041858,120]
[421951950,1778365848000,-500.0,0.00041095,2]
[421951951,1778365848000,-500.0,0.00041095,2]
[421951946,1778365848000,-500.0,0.00041095,2]
[421951964,1778365848000,-2124.115976,0.00041858,120]
[421951948,1778365848000,-500.0,0.00041095,2]
[421951949,1778365848000,-500.0,0.00041095,2]
[421951941,1778365848000,-1000000.0,0.00041859,30]
[421951942,1778365848000,-1000000.0,0.00041859,30]
[421951940,1778365848000,-1000000.0,0.00041859,30]
[421951943,1778365848000,-565070.34187546,0.00041859,30]
[421951945,1778365848000,-200.0,0.00041022,3]
[421951939,1778365848000,-1000000.0,0.00041859,30]
[421951956,1778365848000,-151.0,0.00041858,120]
[421951944,1778365848000,-300.0,0.00041022,3]
[421951957,1778365848000,-2124.115976,0.00041858,120]
[421951954,1778365848000,-694.767568,0.00041858,120]
[421951947,1778365848000,-500.0,0.00041095,2]
[421951955,1778365848000,-6508.40635,0.00041858,14]
[421951953,1778365848000,-2124.115976,0.00041858,120]
[421951985,1778365849000,-500.0,0.00041095,2]
[421951996,1778365849000,-280.41646029,0.0004131,2]
[421951995,1778365849000,-506.00252698,0.00041095,2]
[421951987,1778365849000,-500.0,0.00041095,2]
[421951988,1778365849000,-500.0,0.00041095,2]
[421951994,1778365849000,-500.0,0.00041095,2]
[421951989,1778365849000,-500.0,0.00041095,2]
[421951993,1778365849000,-500.0,0.00041095,2]
[421951990,1778365849000,-174.41187752,0.00041095,2]
[421951991,1778365849000,-500.0,0.00041095,2]
[421951986,1778365849000,-500.0,0.00041095,2]
[421951992,1778365849000,-500.0,0.00041095,2]
[421951982,1778365849000,-500.0,0.00041095,2]
[421951977,1778365849000,-1794.44722741,0.00037698,2]
[421951979,1778365849000,-436.0956,0.00039019,30]
[421951999,1778365849000,-6508.406347,0.00041858,14]
[421951980,1778365849000,-602.58,0.0004011,21]
[421951983,1778365849000,-500.0,0.00041095,2]
[421951981,1778365849000,-500.0,0.00041095,2]
[421951978,1778365849000,-343.62395792,0.00037698,2]
[421951975,1778365849000,-203.0,0.00024397,2]
[421951976,1778365849000,-732.08639292,0.00037698,2]
[421951974,1778365849000,-300.0,0.00024397,2]
[421951972,1778365849000,-50.4810314,0.00037698,2]
[421951973,1778365849000,-70.73044726,0.00037698,2]
[421951971,1778365849000,-300.25099674,0.00037698,2]
[421951970,1778365849000,-0.00704473,0.00037698,2]
[421951984,1778365849000,-500.0,0.00041095,2]
[421951998,1778365849000,-694.767568,0.00041858,120]
[421952015,1778365849000,-2124.115976,0.00041858,120]
[421952001,1778365849000,-694.767568,0.00041858,120]
[421951997,1778365849000,-2124.115976,0.00041858,120]
[421952029,1778365849000,-4139.49999993,0.00041859,30]
[421952026,1778365849000,-258.67318822,0.00041859,30]
[421952027,1778365849000,-2615.30737929,0.00041859,30]
[421952025,1778365849000,-1980.378411,0.00041858,120]
[421952017,1778365849000,-2124.115976,0.00041858,120]
[421952018,1778365849000,-694.767568,0.00041858,120]
[421952020,1778365849000,-2124.115976,0.00041858,120]
[421952022,1778365849000,-1980.378411,0.00041858,120]
[421952014,1778365849000,-694.767568,0.00041858,120]
[421952016,1778365849000,-694.767568,0.00041858,120]
[421952021,1778365849000,-694.767566,0.00041858,120]
[421952012,1778365849000,-694.767568,0.00041858,120]
[421952019,1778365849000,-1980.378411,0.00041858,120]
[421952028,1778365849000,-2293.32398151,0.00041859,30]
[421952024,1778365849000,-1980.378411,0.00041858,120]
[421952002,1778365849000,-2124.115976,0.00041858,120]
[421952005,1778365849000,-2124.115976,0.00041858,120]
[421952004,1778365849000,-694.767568,0.00041858,120]
[421952000,1778365849000,-2124.115976,0.00041858,120]
[421952007,1778365849000,-2124.115976,0.00041858,120]
[421952003,1778365849000,-694.767568,0.00041858,120]
[421952010,1778365849000,-694.767568,0.00041858,120]
[421952008,1778365849000,-694.767568,0.00041858,120]
[421952009,1778365849000,-2124.115976,0.00041858,120]
[421952011,1778365849000,-2124.115976,0.00041858,120]
[421952023,1778365849000,-2124.115976,0.00041858,120]
[421952006,1778365849000,-694.767568,0.00041858,120]
[421952013,1778365849000,-2124.115976,0.00041858,120]
[421952030,1778365850000,-1980.378411,0.00041858,120]
[421952031,1778365850000,-13503.80040949,0.00041859,30]
[421952035,1778366967000,-250.0,0.00014,2]
[421952036,1778366967000,-1000.0,0.00015,2]
[421952037,1778366967000,-500.0,0.00016078,2]
[421952038,1778366967000,-500.0,0.00016078,2]
[421952039,1778366967000,-63.52373861,0.0001608,2]
[421952051,1778366972000,-161.0,0.00022,2]
[421952050,1778366972000,-907.37,0.00021273,2]
[421952053,1778366972000,-9999.99,0.00022272,2]
[421952052,1778366972000,-250.0,0.00022,2]
[421952049,1778366972000,-378.97,0.00021273,2]
[421952047,1778366972000,-161.0,0.00021,2]
[421952048,1778366972000,-250.0,0.00021,2]
[421952046,1778366972000,-15091.53157601,0.00020589,2]
[421952044,1778366972000,-250.0,0.0002,2]
[421952040,1778366972000,-446.73108301,0.0001608,2]
[421952043,1778366972000,-161.0,0.0002,2]
[421952042,1778366972000,-375.77,0.00017115,2]
[421952054,1778366972000,-161.0,0.00023,2]
[421952045,1778366972000,-300.0,0.00020588,2]
[421952055,1778366972000,-250.0,0.00023,2]
[421952041,1778366972000,-500.0,0.0001608,2]
[421952057,1778366972000,-250.0,0.00024,2]
[421952058,1778366972000,-214.73073128,0.00024082,2]
[421952072,1778366972000,-228.35823797,0.00027671,2]
[421952070,1778366972000,-446.01190666,0.00027397,2]
[421952067,1778366972000,-503.0,0.00025986,3]
[421952069,1778366972000,-694.55116786,0.0002728,2]
[421952068,1778366972000,-150.0,0.00026849,2]
[421952065,1778366972000,-378.97,0.00025786,2]
[421952071,1778366972000,-503.0,0.00027575,5]
[421952064,1778366972000,-262.0,0.00025,2]
[421952061,1778366972000,-503.0,0.00024397,2]
[421952063,1778366972000,-179.0,0.00025,2]
[421952062,1778366972000,-174.47,0.00024935,2]
[421952060,1778366972000,-173.48,0.00024174,2]
[421952059,1778366972000,-150.99,0.00024134,2]
[421952056,1778366972000,-161.0,0.00024,2]
[421952066,1778366972000,-907.37,0.00025786,2]
[421952082,1778367032000,-166.74,0.0002958,30]
[421952084,1778367032000,-2500.0,0.00030438,120]
[421952085,1778367032000,-500.0,0.00030438,120]
[421952083,1778367032000,-150.0,0.00029601,2]
[421952086,1778367032000,-3939.82636313,0.00030453,2]
[421952079,1778367032000,-2500.0,0.00028765,120]
[421952081,1778367032000,-709.0303541,0.0002922,2]
[421952078,1778367032000,-150.0,0.00028192,2]
[421952077,1778367032000,-2500.0,0.00027931,120]
[421952076,1778367032000,-400.0,0.00027835,2]
[421952087,1778367032000,-1000.0,0.00030684,2]
[421952080,1778367032000,-1720.69311134,0.00028765,120]
[421952088,1778367032000,-174.15,0.00030707,120]
[421952075,1778367032000,-217.65366868,0.00027671,2]
[421952091,1778367032000,-506.66042498,0.00030828,2]
[421952089,1778367032000,-9999.99,0.00030752,2]
[421952101,1778367032000,-161.0,0.00030929,30]
[421952102,1778367032000,-290.75391684,0.0003104,2]
[421952099,1778367032000,-96.75391684,0.00030928,2]
[421952100,1778367032000,-53.24608316,0.00030928,2]
[421952096,1778367032000,-613.38539259,0.00030828,2]
[421952098,1778367032000,-161.0,0.00030928,30]
[421952097,1778367032000,-250.0,0.00030928,30]
[421952095,1778367032000,-314.61460741,0.00030828,2]
[421952092,1778367032000,-117.33957502,0.00030828,2]
[421952093,1778367032000,-200.0,0.00030828,2]
[421952090,1778367032000,-925.0,0.00030828,2]
[421952094,1778367032000,-150.0,0.00030828,2]
[421952164,1778367038000,-250.0,0.00035928,30]
[421952146,1778367038000,-150.0,0.00032636,2]
[421952155,1778367038000,-1555.789,0.00034322,38]
[421952156,1778367038000,-150.00000094,0.00034422,7]
[421952160,1778367038000,-500.0,0.00035616,60]
[421952165,1778367038000,-161.0,0.00035929,30]
[421952161,1778367038000,-160.05,0.00035616,60]
[421952166,1778367038000,-150.0,0.00035981,2]
[421952167,1778367038000,-186.97,0.00036021,7]
[421952162,1778367038000,-220.21080291,0.00035616,2]
[421952158,1778367038000,-161.0,0.00034929,30]
[421952168,1778367038000,-186.97,0.00036021,7]
[421952159,1778367038000,-403.4,0.00034932,2]
[421952152,1778367038000,-161.0,0.00033929,30]
[421952157,1778367038000,-250.0,0.00034928,30]
[421952169,1778367038000,-186.97,0.00036021,7]
[421952170,1778367038000,-173.55,0.00036021,7]
[421952163,1778367038000,-500.0,0.0003589,60]
[421952147,1778367038000,-166.74,0.00032694,30]
[421952145,1778367038000,-403.4,0.0003255,2]
[421952149,1778367038000,-161.0,0.00032929,30]
[421952171,1778367038000,-173.55,0.00036021,7]
[421952141,1778367038000,-250.0,0.00031928,30]
[421952139,1778367038000,-403.4,0.00031756,2]
[421952134,1778367038000,-150.0,0.00031081,2]
[421952140,1778367038000,-225.24,0.00031756,2]
[421952137,1778367038000,-300.0,0.00031521,2]
[421952135,1778367038000,-2500.0,0.00031242,120]
[421952138,1778367038000,-200.0,0.000317,2]
[421952136,1778367038000,-185.12166776,0.000313,2]
[421952133,1778367038000,-4709.24608316,0.0003104,2]
[421952142,1778367038000,-161.0,0.00031928,30]
[421952143,1778367038000,-161.0,0.00031929,30]
[421952144,1778367038000,-1000.0,0.00032013,20]
[421952148,1778367038000,-250.0,0.00032928,30]
[421952154,1778367038000,-150.0,0.00034267,2]
[421952150,1778367038000,-403.4,0.00033344,2]
[421952153,1778367038000,-403.4,0.00034138,2]
[421952151,1778367038000,-250.0,0.00033928,30]
[421952173,1778367038000,-173.54,0.00036021,7]
[421952207,1778367038000,-1011.55,0.00037686,10]
[421952175,1778367038000,-186.97,0.00036569,7]
[421952215,1778367038000,-412.35848644,0.00037696,2]
[421952232,1778367038000,-300.0,0.00037696,2]
[421952231,1778367038000,-309.51003376,0.00037696,2]
[421952227,1778367038000,-451.4433371,0.00037696,2]
[421952221,1778367038000,-310.57459591,0.00037696,2]
[421952223,1778367038000,-463.36822182,0.00037696,2]
[421952225,1778367038000,-576.5741924,0.00037696,2]
[421952219,1778367038000,-863.54795654,0.00037696,2]
[421952229,1778367038000,-483.58541473,0.00037696,2]
[421952233,1778367038000,-1093.57565763,0.00037696,2]
[421952237,1778367038000,-603.8329142,0.00037696,2]
[421952243,1778367038000,-892.47111794,0.00037696,2]
[421952245,1778367038000,-725.31429466,0.00037696,2]
[421952239,1778367038000,-527.1999469,0.00037696,2]
[421952241,1778367038000,-1065.80891605,0.00037696,2]
[421952246,1778367038000,-399.46100559,0.00037696,2]
[421952174,1778367038000,-500.0,0.00036164,60]
[421952213,1778367038000,-1145.98254531,0.00037696,2]
[421952211,1778367038000,-1607.46,0.00037686,10]
[421952235,1778367038000,-492.17769921,0.00037696,2]
[421952197,1778367038000,-173.55,0.00037117,7]
[421952172,1778367038000,-173.55,0.00036021,7]
[421952205,1778367038000,-214.73073128,0.00037568,30]
[421952182,1778367038000,-173.54,0.00036569,7]
[421952176,1778367038000,-186.97,0.00036569,7]
[421952179,1778367038000,-173.55,0.00036569,7]
[421952177,1778367038000,-186.97,0.00036569,7]
[421952180,1778367038000,-173.55,0.00036569,7]
[421952184,1778367038000,-7402.0,0.00036624,30]
[421952186,1778367038000,-250.0,0.00036928,30]
[421952178,1778367038000,-173.55,0.00036569,7]
[421952195,1778367038000,-186.97,0.00037117,7]
[421952199,1778367038000,-173.55,0.00037117,7]
[421952191,1778367038000,-186.97,0.00037117,7]
[421952203,1778367038000,-173.54,0.00037117,7]
[421952201,1778367038000,-173.55,0.00037117,7]
[421952209,1778367038000,-1928.96,0.00037686,10]
[421952189,1778367038000,-161.0,0.00036929,30]
[421952193,1778367038000,-186.97,0.00037117,7]
[421952334,1778367039000,-500.0,0.0003805,15]
[421952319,1778367039000,-500.0,0.0003805,15]
[421952321,1778367039000,-500.0,0.0003805,15]
[421952317,1778367039000,-500.0,0.0003805,15]
[421952332,1778367039000,-500.0,0.0003805,15]
[421952330,1778367039000,-500.0,0.0003805,15]
[421952315,1778367039000,-500.0,0.0003805,15]
[421952327,1778367039000,-500.0,0.0003805,15]
[421952325,1778367039000,-500.0,0.0003805,15]
[421952323,1778367039000,-242.41428933,0.0003805,15]
[421952313,1778367039000,-500.0,0.0003805,15]
[421952311,1778367039000,-689.62013441,0.0003795,2]
[421952336,1778367039000,-500.0,0.0003805,15]
[421952342,1778367039000,-500.0,0.0003805,15]
[421952338,1778367039000,-311.83771769,0.0003805,15]
[421952350,1778367039000,-500.0,0.0003805,15]
[421952348,1778367039000,-500.0,0.0003805,15]
[421952356,1778367039000,-500.0,0.0003805,15]
[421952344,1778367039000,-500.0,0.0003805,15]
[421952352,1778367039000,-500.0,0.0003805,15]
[421952354,1778367039000,-500.0,0.0003805,15]
[421952359,1778367039000,-500.0,0.0003805,15]
[421952358,1778367039000,-500.0,0.0003805,15]
[421952361,1778367039000,-500.0,0.0003805,15]
[421952346,1778367039000,-500.0,0.0003805,15]
[421952309,1778367039000,-150.0,0.0003778,2]
[421952363,1778367039000,-500.0,0.0003805,15]
[421952341,1778367039000,-500.0,0.0003805,15]
[421952306,1778367039000,-1794.44722741,0.00037696,2]
[421952267,1778367039000,-463.36822182,0.00037696,2]
[421952292,1778367039000,-399.46100559,0.00037696,2]
[421952367,1778367039000,-500.0,0.0003805,15]
[421952250,1778367039000,-300.0,0.00037696,2]
[421952252,1778367039000,-300.25804147,0.00037696,2]
[421952254,1778367039000,-853.29787158,0.00037696,2]
[421952248,1778367039000,-301.48155124,0.00037696,2]
[421952256,1778367039000,-1794.44722741,0.00037696,2]
[421952259,1778367039000,-343.62395792,0.00037696,2]
[421952263,1778367039000,-863.54795654,0.00037696,2]
[421952271,1778367039000,-451.4433371,0.00037696,2]
[421952261,1778367039000,-1145.98254531,0.00037696,2]
[421952275,1778367039000,-483.58541473,0.00037696,2]
[421952265,1778367039000,-310.57459591,0.00037696,2]
[421952268,1778367039000,-576.5741924,0.00037696,2]
[421952307,1778367039000,-1444.0,0.00037753,120]
[421952273,1778367039000,-306.05504662,0.00037696,2]
[421952280,1778367039000,-1093.57565763,0.00037696,2]
[421952278,1778367039000,-300.0,0.00037696,2]
[421952282,1778367039000,-492.17769921,0.00037696,2]
[421952284,1778367039000,-603.8329142,0.00037696,2]
[421952286,1778367039000,-527.1999469,0.00037696,2]
[421952298,1778367039000,-300.0,0.00037696,2]
[421952302,1778367039000,-317.1341678,0.00037696,2]
[421952304,1778367039000,-853.29787158,0.00037696,2]
[421952300,1778367039000,-300.25804147,0.00037696,2]
[421952288,1778367039000,-1065.80891603,0.00037696,2]
[421952290,1778367039000,-892.47111794,0.00037696,2]
[421952294,1778367039000,-725.31429466,0.00037696,2]
[421952296,1778367039000,-301.48155124,0.00037696,2]
[421952276,1778367039000,-309.51003376,0.00037696,2]
[421952371,1778367039000,-500.0,0.0003805,15]
[421952500,1778367039000,-8088.6136,0.0003931,2]
[421952365,1778367039000,-500.0,0.0003805,15]
[421952444,1778367039000,-173.55,0.00038487,7]
[421952454,1778367039000,-8088.6136,0.00038625,2]
[421952442,1778367039000,-173.55,0.00038487,7]
[421952456,1778367039000,-1200.0,0.0003863,30]
[421952446,1778367039000,-173.54,0.00038487,7]
[421952440,1778367039000,-173.55,0.00038487,7]
[421952458,1778367039000,-1500000.0,0.00038662,2]
[421952450,1778367039000,-10000.0,0.00038562,2]
[421952448,1778367039000,-8088.6136,0.00038488,2]
[421952462,1778367039000,-503.11139705,0.00038673,5]
[421952464,1778367039000,-150.0,0.000387,10]
[421952460,1778367039000,-284.67781173,0.00038673,5]
[421952466,1778367039000,-8088.6136,0.00038762,2]
[421952452,1778367039000,-166.65528514,0.00038573,2]
[421952468,1778367039000,-1794.6713723,0.00038794,2]
[421952473,1778367039000,-8088.6136,0.00038899,2]
[421952475,1778367039000,-298.47379803,0.00039,2]
[421952480,1778367039000,-200.0,0.00039097,6]
[421952482,1778367039000,-200.0,0.00039103,6]
[421952486,1778367039000,-161.29,0.00039119,120]
[421952477,1778367039000,-8088.6136,0.00039036,2]
[421952489,1778367039000,-1794.6713723,0.00039167,2]
[421952484,1778367039000,-200.0,0.00039104,6]
[421952493,1778367039000,-161.29,0.00039219,120]
[421952502,1778367039000,-808.8205,0.0003931,2]
[421952377,1778367039000,-500.0,0.0003805,15]
[421952497,1778367039000,-155.04409265,0.00039301,2]
[421952491,1778367039000,-8088.6136,0.00039173,2]
[421952470,1778367039000,-164.24,0.00038847,120]
[421952438,1778367039000,-186.97,0.00038487,7]
[421952495,1778367039000,-2222.75690501,0.00039246,120]
[421952434,1778367039000,-186.97,0.00038487,7]
[421952436,1778367039000,-186.97,0.00038487,7]
[421952381,1778367039000,-500.0,0.0003805,15]
[421952379,1778367039000,-500.0,0.0003805,15]
[421952383,1778367039000,-500.0,0.0003805,15]
[421952385,1778367039000,-464.09886071,0.0003805,15]
[421952387,1778367039000,-500.0,0.0003805,15]
[421952389,1778367039000,-1794.67137231,0.0003805,2]
[421952391,1778367039000,-89654.7517,0.00038051,2]
[421952393,1778367039000,-2500.0,0.00038151,2]
[421952397,1778367039000,-192.24565185,0.00038241,2]
[421952395,1778367039000,-166.02135318,0.00038151,2]
[421952401,1778367039000,-500.0,0.0003825,15]
[421952399,1778367039000,-500.0,0.0003825,15]
[421952405,1778367039000,-165.70065655,0.0003825,15]
[421952369,1778367039000,-500.0,0.0003805,15]
[421952404,1778367039000,-241.56126885,0.0003825,15]
[421952408,1778367039000,-500.0,0.0003825,2]
[421952432,1778367039000,-1794.6713723,0.00038422,2]
[421952428,1778367039000,-8088.6136,0.00038351,2]
[421952426,1778367039000,-155.04409265,0.00038251,2]
[421952422,1778367039000,-250.0,0.0003825,30]
[421952424,1778367039000,-2500000.0,0.00038251,2]
[421952430,1778367039000,-808.8205,0.00038351,2]
[421952416,1778367039000,-500.0,0.0003825,30]
[421952418,1778367039000,-500.0,0.0003825,30]
[421952414,1778367039000,-500.0,0.0003825,30]
[421952412,1778367039000,-500.0,0.0003825,30]
[421952410,1778367039000,-500.0,0.0003825,2]
[421952420,1778367039000,-500.0,0.0003825,30]
[421952571,1778367040000,-8088.6136,0.00040132,2]
[421952574,1778367040000,-166.65528512,0.00040165,2]
[421952592,1778367040000,-378.97,0.0004029,60]
[421952576,1778367040000,-350.0,0.00040186,2]
[421952582,1778367040000,-1000.0,0.00040215,21]
[421952585,1778367040000,-8088.6145,0.00040269,2]
[421952580,1778367040000,-500.0,0.00040215,21]
[421952569,1778367040000,-350.0,0.00040091,3]
[421952542,1778367040000,-161.31737765,0.00039819,120]
[421952587,1778367040000,-808.8206,0.00040269,2]
[421952578,1778367040000,-170.000001,0.000402,3]
[421952563,1778367040000,-165.29,0.0004,5]
[421952594,1778367040000,-907.37,0.0004029,60]
[421952603,1778367040000,-193.01,0.00040475,120]
[421952616,1778367040000,-1069.96834935,0.00040602,2]
[421952598,1778367040000,-155.04409265,0.0004035,15]
[421952612,1778367040000,-184.33533966,0.00040589,2]
[421952614,1778367040000,-182.0,0.000406,120]
[421952601,1778367040000,-1482.63749678,0.0004042,2]
[421952596,1778367040000,-1482.63749678,0.00040329,2]
[421952610,1778367040000,-1482.63749678,0.00040566,2]
[421952606,1778367040000,-168.56,0.000405,2]
[421952608,1778367040000,-166.02135317,0.00040554,2]
[421952622,1778367040000,-942.36,0.0004075,120]
[421952565,1778367040000,-20000.0,0.0004,10]
[421952589,1778367040000,-1794.6713723,0.00040283,15]
[421952560,1778367040000,-182.0,0.0004,120]
[421952540,1778367040000,-8088.6136,0.00039721,2]
[421952544,1778367040000,-8088.6136,0.00039858,2]
[421952620,1778367040000,-184.33533966,0.00040689,2]
[421952511,1778367040000,-161.29,0.00039419,120]
[421952504,1778367040000,-161.29,0.00039319,120]
[421952515,1778367040000,-161.29,0.00039519,120]
[421952508,1778367040000,-2222.75690501,0.00039392,120]
[421952513,1778367040000,-8088.6136,0.00039447,2]
[421952506,1778367040000,-166.02135317,0.00039352,2]
[421952527,1778367040000,-158.67571522,0.000396,30]
[421952516,1778367040000,-1794.6713723,0.00039539,2]
[421952521,1778367040000,-11868.72620715,0.00039583,2]
[421952534,1778367040000,-152.079551,0.00039685,2]
[421952538,1778367040000,-161.29,0.00039719,120]
[421952519,1778367040000,-2222.75690501,0.0003956,120]
[421952530,1778367040000,-161.29,0.00039619,120]
[421952523,1778367040000,-8088.6136,0.00039584,2]
[421952532,1778367040000,-150.0,0.00039669,2]
[421952525,1778367040000,-158.67571523,0.000396,30]
[421952536,1778367040000,-1482.63749678,0.00039704,2]
[421952552,1778367040000,-1794.6713723,0.00039911,15]
[421952558,1778367040000,-298.0,0.0004,30]
[421952548,1778367040000,-1600.0,0.00039909,30]
[421952546,1778367040000,-157.4149745,0.0003989,2]
[421952550,1778367040000,-1600.0,0.00039909,60]
[421952554,1778367040000,-8088.6136,0.00039995,2]
[421952556,1778367040000,-151.0,0.0004,120]
[421952567,1778367040000,-2009.04957785,0.0004,120]
[421952625,1778367040000,-1482.63749678,0.00040849,2]
[421952605,1778367040000,-184.33533966,0.00040489,2]
[421952628,1778367040000,-370.60193963,0.00040856,13]
[421952704,1778367040000,-500.0,0.00041095,2]
[421952706,1778367040000,-500.0,0.00041095,2]
[421952697,1778367040000,-500.0,0.00041095,2]
[421952700,1778367040000,-500.0,0.00041095,2]
[421952685,1778367040000,-500.0,0.00041095,2]
[421952695,1778367040000,-500.0,0.00041095,2]
[421952693,1778367040000,-500.0,0.00041095,2]
[421952687,1778367040000,-500.0,0.00041095,2]
[421952689,1778367040000,-500.0,0.00041095,2]
[421952698,1778367040000,-551.23367372,0.00041095,2]
[421952690,1778367040000,-500.0,0.00041095,2]
[421952710,1778367040000,-500.0,0.00041095,2]
[421952702,1778367040000,-500.0,0.00041095,2]
[421952708,1778367040000,-500.0,0.00041095,2]
[421952725,1778367040000,-500.0,0.00041095,2]
[421952713,1778367040000,-500.0,0.00041095,2]
[421952719,1778367040000,-500.0,0.00041095,2]
[421952721,1778367040000,-500.0,0.00041095,2]
[421952715,1778367040000,-500.0,0.00041095,2]
[421952723,1778367040000,-500.0,0.00041095,2]
[421952729,1778367040000,-500.0,0.00041095,2]
[421952731,1778367040000,-500.0,0.00041095,2]
[421952733,1778367040000,-500.0,0.00041095,2]
[421952735,1778367040000,-500.0,0.00041095,2]
[421952739,1778367040000,-500.0,0.00041095,2]
[421952630,1778367040000,-370.60193955,0.00040856,13]
[421952717,1778367040000,-500.0,0.00041095,2]
[421952683,1778367040000,-500.0,0.00041095,2]
[421952727,1778367040000,-500.0,0.00041095,2]
[421952664,1778367040000,-500.0,0.00041095,2]
[421952676,1778367040000,-500.0,0.00041095,2]
[421952636,1778367040000,-329.15,0.00041,17]
[421952618,1778367040000,-1794.6713723,0.00040656,15]
[421952634,1778367040000,-255794.0,0.0004095,60]
[421952638,1778367040000,-298.0,0.00041,30]
[421952640,1778367040000,-495.56878518,0.00041021,120]
[421952632,1778367040000,-370.60193955,0.00040856,13]
[421952642,1778367040000,-1794.6713723,0.00041028,15]
[421952737,1778367040000,-500.0,0.00041095,2]
[421952655,1778367040000,-500.0,0.00041095,2]
[421952650,1778367040000,-500.0,0.00041037,21]
[421952657,1778367040000,-500.0,0.00041095,2]
[421952656,1778367040000,-500.0,0.00041095,2]